[Event "Titled Tuesday Blitz August 16 Early 2022"]
[White "Rostomyan, Mikayel"]
[Black "Gabdrakhmanov, Azat"]
[WhiteFideId "13313754"]
[BlackFideId "34189197"]
[WhiteElo "1426"]
[BlackElo "2293"]
[Result "1/2-1/2"]
[Round "07"]
[TimeControl "180+1"]
[Date "2022.08.16"]
[WhiteClock "0:00:04"]
[BlackClock "0:00:34"]

1. d4 {[%clk 0:03:00]}  Nf6 {[%clk 0:02:59]} 2. Nf3 {[%clk 0:02:59]}  g6 {[%clk 0:03:00]} 3. b3 {[%clk 0:02:58]}  Bg7 {[%clk 0:03:00]} 4. Bb2 {[%clk 0:02:59]}  O-O {[%clk 0:03:00]} 5. e3 {[%clk 0:02:59]}  d5 {[%clk 0:02:58]} 6. Be2 {[%clk 0:02:57]}  Nbd7 {[%clk 0:02:57]} 7. O-O {[%clk 0:02:57]}  a5 {[%clk 0:02:55]} 8. a4 {[%clk 0:02:56]}  Ne4 {[%clk 0:02:52]} 9. c4 {[%clk 0:02:56]}  c6 {[%clk 0:02:51]} 10. Nc3 {[%clk 0:02:56]}  Nxc3 {[%clk 0:02:51]} 11. Bxc3 {[%clk 0:02:55]}  Nf6 {[%clk 0:02:51]} 12. Nd2 {[%clk 0:02:53]}  Bf5 {[%clk 0:02:51]} 13. Re1 {[%clk 0:02:48]}  h5 {[%clk 0:02:50]} 14. Bf3 {[%clk 0:02:47]}  Qd7 {[%clk 0:02:47]} 15. Qe2 {[%clk 0:02:41]}  Ne4 {[%clk 0:02:08]} 16. Bxe4 {[%clk 0:02:37]}  Bxe4 {[%clk 0:02:07]} 17. Nxe4 {[%clk 0:02:36]}  dxe4 {[%clk 0:02:08]} 18. Rad1 {[%clk 0:02:34]}  Qf5 {[%clk 0:02:06]} 19. Rf1 {[%clk 0:02:26]}  Rad8 {[%clk 0:02:00]} 20. f3 {[%clk 0:02:24]}  exf3 {[%clk 0:01:59]} 21. Rxf3 {[%clk 0:02:22]}  Qe4 {[%clk 0:01:56]} 22. Rf4 {[%clk 0:02:11]}  Qe6 {[%clk 0:01:55]} 23. Bxa5 {[%clk 0:02:08]}  Rd7 {[%clk 0:01:52]} 24. Qf3 {[%clk 0:01:59]}  f5 {[%clk 0:01:39]} 25. Qf2 {[%clk 0:01:19]}  g5 {[%clk 0:01:30]} 26. Rf3 {[%clk 0:01:18]}  g4 {[%clk 0:01:29]} 27. Rf4 {[%clk 0:01:13]}  Bh6 {[%clk 0:01:29]} 28. Bc3 {[%clk 0:01:09]}  Bxf4 {[%clk 0:01:26]} 29. Qxf4 {[%clk 0:01:09]}  Qf6 {[%clk 0:01:26]} 30. Rc1 {[%clk 0:00:54]}  Kh7 {[%clk 0:01:21]} 31. d5 {[%clk 0:00:46]}  Qh6 {[%clk 0:01:13]} 32. Qe5 {[%clk 0:00:36]}  cxd5 {[%clk 0:01:06]} 33. cxd5 {[%clk 0:00:35]}  h4 {[%clk 0:01:06]} 34. Rf1 {[%clk 0:00:34]}  Qg5 {[%clk 0:01:02]} 35. e4 {[%clk 0:00:30]}  h3 {[%clk 0:00:55]} 36. Rxf5 {[%clk 0:00:20]}  Rxf5 {[%clk 0:00:48]} 37. Qh8+ {[%clk 0:00:19]}  Kg6 {[%clk 0:00:49]} 38. exf5+ {[%clk 0:00:14]}  Kxf5 {[%clk 0:00:45]} 39. Qe5+ {[%clk 0:00:13]}  Kg6 {[%clk 0:00:44]} 40. Qg7+ {[%clk 0:00:13]}  Kf5 {[%clk 0:00:41]} 41. Qe5+ {[%clk 0:00:09]}  Kg6 {[%clk 0:00:40]} 42. Qg7+ {[%clk 0:00:06]}  Kh5 {[%clk 0:00:37]} 43. Qh7+ {[%clk 0:00:05]}  Qh6 {[%clk 0:00:37]} 44. Qf5+ {[%clk 0:00:05]}  Qg5 {[%clk 0:00:37]} 45. Qh7+ {[%clk 0:00:03]}  Qh6 {[%clk 0:00:34]} 46. Qf5+ {[%clk 0:00:03]}  Qg5 {[%clk 0:00:34]} 47. Qh7+ {[%clk 0:00:04]} 1/2-1/2


[Site "https://www.chess.com"]

[Event "Titled Tuesday Blitz August 16 Early 2022"]
[White "Salem, A.R. Saleh"]
[Black "Andreikin, Dmitry"]
[WhiteFideId "9301348"]
[BlackFideId "4158814"]
[WhiteElo "2674"]
[BlackElo "2736"]
[Result "1-0"]
[Round "07"]
[TimeControl "180+1"]
[Date "2022.08.16"]
[WhiteClock "0:00:12"]
[BlackClock "0:00:02"]

1. d4 {[%clk 0:03:00]}  d5 {[%clk 0:03:00]} 2. c4 {[%clk 0:03:01]}  e6 {[%clk 0:03:00]} 3. Nc3 {[%clk 0:03:01]}  a6 {[%clk 0:03:01]} 4. cxd5 {[%clk 0:03:00]}  exd5 {[%clk 0:03:02]} 5. Nf3 {[%clk 0:03:01]}  Nf6 {[%clk 0:03:01]} 6. Bg5 {[%clk 0:03:01]}  Be6 {[%clk 0:03:01]} 7. e3 {[%clk 0:03:02]}  Nbd7 {[%clk 0:03:02]} 8. h3 {[%clk 0:03:02]}  Bd6 {[%clk 0:03:00]} 9. Bd3 {[%clk 0:03:02]}  c6 {[%clk 0:03:00]} 10. Bf4 {[%clk 0:03:02]}  Qc7 {[%clk 0:02:57]} 11. Qd2 {[%clk 0:03:02]}  O-O {[%clk 0:02:57]} 12. O-O {[%clk 0:03:02]}  Rfe8 {[%clk 0:02:56]} 13. Rfe1 {[%clk 0:03:02]}  Rad8 {[%clk 0:02:55]} 14. a3 {[%clk 0:03:02]}  Nf8 {[%clk 0:02:52]} 15. Rac1 {[%clk 0:02:54]}  Ng6 {[%clk 0:02:51]} 16. Bg5 {[%clk 0:02:52]}  Be7 {[%clk 0:02:45]} 17. Qc2 {[%clk 0:02:38]}  Qc8 {[%clk 0:02:34]} 18. Ne2 {[%clk 0:02:23]}  Ne4 {[%clk 0:02:22]} 19. Bxe7 {[%clk 0:02:21]}  Rxe7 {[%clk 0:02:23]} 20. Bxe4 {[%clk 0:02:08]}  dxe4 {[%clk 0:02:23]} 21. Nd2 {[%clk 0:02:08]}  Bxh3 {[%clk 0:02:17]} 22. gxh3 {[%clk 0:01:46]}  Qxh3 {[%clk 0:02:18]} 23. Qd1 {[%clk 0:01:14]}  Rd6 {[%clk 0:01:08]} 24. Rc5 {[%clk 0:01:02]}  Nh4 {[%clk 0:00:59]} 25. Rg5 {[%clk 0:01:02]}  Rh6 {[%clk 0:00:59]} 26. Nf4 {[%clk 0:01:03]}  Nf3+ {[%clk 0:00:58]} 27. Qxf3 {[%clk 0:01:03]}  Qh2+ {[%clk 0:00:58]} 28. Kf1 {[%clk 0:01:04]}  exf3 {[%clk 0:00:56]} 29. Nxf3 {[%clk 0:01:04]}  f6 {[%clk 0:00:37]} 30. Rg1 {[%clk 0:00:36]}  Qxg1+ {[%clk 0:00:28]} 31. Kxg1 {[%clk 0:00:37]}  g5 {[%clk 0:00:27]} 32. Ne2 {[%clk 0:00:35]}  Rg6 {[%clk 0:00:20]} 33. Ng3 {[%clk 0:00:35]}  Kf7 {[%clk 0:00:17]} 34. Nf5 {[%clk 0:00:35]}  Rd7 {[%clk 0:00:17]} 35. Nd2 {[%clk 0:00:30]}  h5 {[%clk 0:00:16]} 36. Nb3 {[%clk 0:00:26]}  Rd5 {[%clk 0:00:11]} 37. e4 {[%clk 0:00:23]}  Rd8 {[%clk 0:00:12]} 38. Nc5 {[%clk 0:00:22]}  b6 {[%clk 0:00:10]} 39. Nxa6 {[%clk 0:00:18]}  g4 {[%clk 0:00:10]} 40. Rc1 {[%clk 0:00:18]}  g3 {[%clk 0:00:06]} 41. fxg3 {[%clk 0:00:17]}  Rg4 {[%clk 0:00:06]} 42. Rxc6 {[%clk 0:00:17]}  Kg6 {[%clk 0:00:06]} 43. Re6 {[%clk 0:00:15]}  h4 {[%clk 0:00:05]} 44. Re7 {[%clk 0:00:14]}  Rg8 {[%clk 0:00:02]} 45. Nb4 {[%clk 0:00:13]}  hxg3 {[%clk 0:00:02]} 46. Kg2 {[%clk 0:00:12]}  Kg5 {[%clk 0:00:02]} 47. Nd5 {[%clk 0:00:12]} 1-0


[Site "https://www.chess.com"]

[Event "Titled Tuesday Blitz August 16 Early 2022"]
[White "Samarth, J Rao"]
[Black "Issabayev, Dias"]
[WhiteFideId "46652370"]
[BlackFideId "13703110"]
[WhiteElo "1664"]
[BlackElo "2235"]
[Result "1-0"]
[Round "07"]
[TimeControl "180+2"]
[Date "2022.08.18"]
[WhiteClock "0:00:00"]
[BlackClock "0:00:00"]

1. d4 {[%clk 0:00:00]}  c5 {[%clk 0:00:00]} 2. d5 {[%clk 0:00:00]}  e5 {[%clk 0:00:00]} 3. c4 {[%clk 0:00:00]}  d6 {[%clk 0:00:00]} 4. e4 {[%clk 0:00:00]}  g6 {[%clk 0:00:00]} 5. Nc3 {[%clk 0:00:00]}  Bh6 {[%clk 0:00:00]} 6. Bxh6 {[%clk 0:00:00]}  Nxh6 {[%clk 0:00:00]} 7. Qd2 {[%clk 0:00:00]}  Ng8 {[%clk 0:00:00]} 8. h4 {[%clk 0:00:00]}  h5 {[%clk 0:00:00]} 9. g3 {[%clk 0:00:00]}  Kf8 {[%clk 0:00:00]} 10. Bh3 {[%clk 0:00:00]}  Kg7 {[%clk 0:00:00]} 11. Bxc8 {[%clk 0:00:00]}  Qxc8 {[%clk 0:00:00]} 12. Nf3 {[%clk 0:00:00]}  Nd7 {[%clk 0:00:00]} 13. Ng5 {[%clk 0:00:00]}  Ngf6 {[%clk 0:00:00]} 14. O-O {[%clk 0:00:00]}  a6 {[%clk 0:00:00]} 15. f4 {[%clk 0:00:00]}  Ng4 {[%clk 0:00:00]} 16. Rf3 {[%clk 0:00:00]}  Qc7 {[%clk 0:00:00]} 17. Raf1 {[%clk 0:00:00]}  Rhf8 {[%clk 0:00:00]} 18. f5 {[%clk 0:00:00]}  Rab8 {[%clk 0:00:00]} 19. fxg6 {[%clk 0:00:00]}  Kxg6 {[%clk 0:00:00]} 20. Nxf7 {[%clk 0:00:00]} 1-0


[Site "https://www.chess.com"]

[Event "Titled Tuesday Blitz August 16 Early 2022"]
[White "Samunenkov, Ihor"]
[Black "Adewumi, Tanitoluwa"]
[WhiteFideId "14187086"]
[BlackFideId "30966396"]
[WhiteElo "2441"]
[BlackElo "2302"]
[Result "1-0"]
[Round "07"]
[TimeControl "180+2"]
[Date "2022.08.18"]
[WhiteClock "0:00:00"]
[BlackClock "0:00:00"]

1. e4 {[%clk 0:00:00]}  c5 {[%clk 0:00:00]} 2. Nf3 {[%clk 0:00:00]}  e6 {[%clk 0:00:00]} 3. d4 {[%clk 0:00:00]}  cxd4 {[%clk 0:00:00]} 4. Nxd4 {[%clk 0:00:00]}  Nc6 {[%clk 0:00:00]} 5. Nc3 {[%clk 0:00:00]}  Qc7 {[%clk 0:00:00]} 6. Qd3 {[%clk 0:00:00]}  Nf6 {[%clk 0:00:00]} 7. Ndb5 {[%clk 0:00:00]}  Qb8 {[%clk 0:00:00]} 8. Qg3 {[%clk 0:00:00]}  d6 {[%clk 0:00:00]} 9. Be3 {[%clk 0:00:00]}  a6 {[%clk 0:00:00]} 10. Nd4 {[%clk 0:00:00]}  Nxd4 {[%clk 0:00:00]} 11. Bxd4 {[%clk 0:00:00]}  e5 {[%clk 0:00:00]} 12. Be3 {[%clk 0:00:00]}  Be6 {[%clk 0:00:00]} 13. O-O-O {[%clk 0:00:00]}  b5 {[%clk 0:00:00]} 14. f4 {[%clk 0:00:00]}  exf4 {[%clk 0:00:00]} 15. Qxf4 {[%clk 0:00:00]}  Be7 {[%clk 0:00:00]} 16. Nd5 {[%clk 0:00:00]}  Bxd5 {[%clk 0:00:00]} 17. exd5 {[%clk 0:00:00]}  O-O {[%clk 0:00:00]} 18. Bd3 {[%clk 0:00:00]}  g6 {[%clk 0:00:00]} 19. Bd4 {[%clk 0:00:00]}  Nd7 {[%clk 0:00:00]} 20. h4 {[%clk 0:00:00]}  Qd8 {[%clk 0:00:00]} 21. Kb1 {[%clk 0:00:00]}  Bf6 {[%clk 0:00:00]} 22. Bf2 {[%clk 0:00:00]}  Be5 {[%clk 0:00:00]} 23. Qd2 {[%clk 0:00:00]}  Qf6 {[%clk 0:00:00]} 24. c3 {[%clk 0:00:00]}  b4 {[%clk 0:00:00]} 25. c4 {[%clk 0:00:00]}  a5 {[%clk 0:00:00]} 26. h5 {[%clk 0:00:00]}  a4 {[%clk 0:00:00]} 27. Bh4 {[%clk 0:00:00]}  Qf4 {[%clk 0:00:00]} 28. Qe2 {[%clk 0:00:00]}  a3 {[%clk 0:00:00]} 29. g3 {[%clk 0:00:00]}  Qd4 {[%clk 0:00:00]} 30. Bxg6 {[%clk 0:00:00]}  Qxb2+ {[%clk 0:00:00]} 31. Qxb2 {[%clk 0:00:00]}  axb2 {[%clk 0:00:00]} 32. Bf5 {[%clk 0:00:00]}  Nc5 {[%clk 0:00:00]} 33. Rhe1 {[%clk 0:00:00]}  Rxa2 {[%clk 0:00:00]} 34. Kxa2 {[%clk 0:00:00]}  Ra8+ {[%clk 0:00:00]} 35. Kb1 {[%clk 0:00:00]}  b3 {[%clk 0:00:00]} 36. Rxe5 {[%clk 0:00:00]}  Ra1+ {[%clk 0:00:00]} 37. Kxb2 {[%clk 0:00:00]}  Rxd1 {[%clk 0:00:00]} 38. Re8+ {[%clk 0:00:00]}  Kg7 {[%clk 0:00:00]} 39. Bg5 {[%clk 0:00:00]}  h6 {[%clk 0:00:00]} 40. Be3 {[%clk 0:00:00]} 1-0


[Site "https://www.chess.com"]

[Event "Titled Tuesday Blitz August 16 Early 2022"]
[White "Sanchez, Robert"]
[Black "Martinez, Shawn"]
[WhiteFideId "2034360"]
[BlackFideId "2039770"]
[WhiteElo "1966"]
[BlackElo "2174"]
[Result "1-0"]
[Round "07"]
[TimeControl "180+2"]
[Date "2022.08.18"]
[WhiteClock "0:00:00"]
[BlackClock "0:00:00"]

1. e4 {[%clk 0:00:00]}  c5 {[%clk 0:00:00]} 2. Nf3 {[%clk 0:00:00]}  e6 {[%clk 0:00:00]} 3. d4 {[%clk 0:00:00]}  cxd4 {[%clk 0:00:00]} 4. Nxd4 {[%clk 0:00:00]}  a6 {[%clk 0:00:00]} 5. Bd3 {[%clk 0:00:00]}  Bc5 {[%clk 0:00:00]} 6. Nb3 {[%clk 0:00:00]}  Ba7 {[%clk 0:00:00]} 7. Nc3 {[%clk 0:00:00]}  b5 {[%clk 0:00:00]} 8. a3 {[%clk 0:00:00]}  Bb7 {[%clk 0:00:00]} 9. Qe2 {[%clk 0:00:00]}  Qc7 {[%clk 0:00:00]} 10. Be3 {[%clk 0:00:00]}  Bxe3 {[%clk 0:00:00]} 11. Qxe3 {[%clk 0:00:00]}  d6 {[%clk 0:00:00]} 12. O-O-O {[%clk 0:00:00]}  Nf6 {[%clk 0:00:00]} 13. f4 {[%clk 0:00:00]}  Nbd7 {[%clk 0:00:00]} 14. Kb1 {[%clk 0:00:00]}  Rc8 {[%clk 0:00:00]} 15. Rhe1 {[%clk 0:00:00]}  O-O {[%clk 0:00:00]} 16. h3 {[%clk 0:00:00]}  Nb6 {[%clk 0:00:00]} 17. g4 {[%clk 0:00:00]}  Nc4 {[%clk 0:00:00]} 18. Bxc4 {[%clk 0:00:00]}  bxc4 {[%clk 0:00:00]} 19. Nd4 {[%clk 0:00:00]}  d5 {[%clk 0:00:00]} 20. e5 {[%clk 0:00:00]}  Ne4 {[%clk 0:00:00]} 21. Nxe4 {[%clk 0:00:00]}  dxe4 {[%clk 0:00:00]} 22. c3 {[%clk 0:00:00]}  Bd5 {[%clk 0:00:00]} 23. Ne2 {[%clk 0:00:00]}  Rb8 {[%clk 0:00:00]} 24. Ka1 {[%clk 0:00:00]}  Rb3 {[%clk 0:00:00]} 25. Rd2 {[%clk 0:00:00]}  Rfb8 {[%clk 0:00:00]} 26. Nc1 {[%clk 0:00:00]}  R3b5 {[%clk 0:00:00]} 27. Qd4 {[%clk 0:00:00]}  Qa5 {[%clk 0:00:00]} 28. Na2 {[%clk 0:00:00]}  Qc7 {[%clk 0:00:00]} 29. f5 {[%clk 0:00:00]}  a5 {[%clk 0:00:00]} 30. f6 {[%clk 0:00:00]}  gxf6 {[%clk 0:00:00]} 31. exf6 {[%clk 0:00:00]}  Qf4 {[%clk 0:00:00]} 32. Rf2 {[%clk 0:00:00]}  Qg3 {[%clk 0:00:00]} 33. Qe3 {[%clk 0:00:00]}  Qh4 {[%clk 0:00:00]} 34. g5 {[%clk 0:00:00]}  Rb3 {[%clk 0:00:00]} 35. Nc1 {[%clk 0:00:00]}  R3b7 {[%clk 0:00:00]} 36. Rg1 {[%clk 0:00:00]}  Qh5 {[%clk 0:00:00]} 37. Rg4 {[%clk 0:00:00]}  Qg6 {[%clk 0:00:00]} 38. Na2 {[%clk 0:00:00]}  Rb3 {[%clk 0:00:00]} 39. Nc1 {[%clk 0:00:00]}  e5 {[%clk 0:00:00]} 40. Rd2 {[%clk 0:00:00]}  Be6 {[%clk 0:00:00]} 41. Rg3 {[%clk 0:00:00]}  R3b7 {[%clk 0:00:00]} 42. Ne2 {[%clk 0:00:00]}  Qh5 {[%clk 0:00:00]} 43. Nc1 {[%clk 0:00:00]}  Rxb2 {[%clk 0:00:00]} 44. Rxb2 {[%clk 0:00:00]}  Rxb2 {[%clk 0:00:00]} 45. Kxb2 {[%clk 0:00:00]}  Qd1 {[%clk 0:00:00]} 46. Rg2 {[%clk 0:00:00]}  Qa4 {[%clk 0:00:00]} 47. Rd2 {[%clk 0:00:00]}  Qb5+ {[%clk 0:00:00]} 48. Kc2 {[%clk 0:00:00]}  h5 {[%clk 0:00:00]} 49. g6 {[%clk 0:00:00]}  Qa4+ {[%clk 0:00:00]} 50. Kb2 {[%clk 0:00:00]}  Qb5+ {[%clk 0:00:00]} 51. Ka1 {[%clk 0:00:00]}  Qb3 {[%clk 0:00:00]} 52. Rd8# {[%clk 0:00:00]} 1-0


[Site "https://www.chess.com"]

[Event "Titled Tuesday Blitz August 16 Early 2022"]
[White "Sarana, Alexey"]
[Black "Vachylia, Andrii"]
[WhiteFideId "24133795"]
[BlackFideId "14137224"]
[WhiteElo "2666"]
[BlackElo "2318"]
[Result "1-0"]
[Round "07"]
[TimeControl "180+1"]
[Date "2022.08.16"]
[WhiteClock "0:00:11"]
[BlackClock "0:00:05"]

1. c4 {[%clk 0:03:00]}  Nf6 {[%clk 0:02:59]} 2. Nc3 {[%clk 0:03:01]}  g6 {[%clk 0:02:59]} 3. g3 {[%clk 0:03:00]}  Bg7 {[%clk 0:02:59]} 4. Bg2 {[%clk 0:03:01]}  O-O {[%clk 0:02:59]} 5. Nf3 {[%clk 0:03:01]}  d6 {[%clk 0:03:00]} 6. O-O {[%clk 0:03:01]}  e5 {[%clk 0:03:00]} 7. d3 {[%clk 0:03:01]}  Nc6 {[%clk 0:02:59]} 8. Rb1 {[%clk 0:03:01]}  a5 {[%clk 0:02:59]} 9. a3 {[%clk 0:03:00]}  Re8 {[%clk 0:03:00]} 10. b4 {[%clk 0:02:59]}  axb4 {[%clk 0:03:01]} 11. axb4 {[%clk 0:02:59]}  e4 {[%clk 0:03:01]} 12. dxe4 {[%clk 0:03:00]}  Nxe4 {[%clk 0:03:02]} 13. Nxe4 {[%clk 0:02:59]}  Rxe4 {[%clk 0:03:03]} 14. b5 {[%clk 0:03:00]}  Ne5 {[%clk 0:02:51]} 15. Nd2 {[%clk 0:02:38]}  Rd4 {[%clk 0:02:42]} 16. e3 {[%clk 0:02:05]}  Rd3 {[%clk 0:02:35]} 17. Be4 {[%clk 0:02:03]}  Bh3 {[%clk 0:02:28]} 18. Re1 {[%clk 0:02:01]}  Ra2 {[%clk 0:01:56]} 19. Bxd3 {[%clk 0:01:37]}  Nxd3 {[%clk 0:01:55]} 20. Re2 {[%clk 0:01:38]}  Qf6 {[%clk 0:01:48]} 21. f3 {[%clk 0:01:38]}  Bh6 {[%clk 0:01:36]} 22. Qb3 {[%clk 0:00:52]}  Nxc1 {[%clk 0:00:55]} 23. Rxc1 {[%clk 0:00:51]}  Rxd2 {[%clk 0:00:27]} 24. Rxd2 {[%clk 0:00:51]}  Qxf3 {[%clk 0:00:27]} 25. Re1 {[%clk 0:00:48]}  Bf5 {[%clk 0:00:25]} 26. Rf2 {[%clk 0:00:48]}  Qg4 {[%clk 0:00:24]} 27. e4 {[%clk 0:00:34]}  Bxe4 {[%clk 0:00:19]} 28. Qc3 {[%clk 0:00:21]}  f5 {[%clk 0:00:12]} 29. Qf6 {[%clk 0:00:20]}  Bg5 {[%clk 0:00:09]} 30. Qe6+ {[%clk 0:00:19]}  Kg7 {[%clk 0:00:10]} 31. Qd7+ {[%clk 0:00:16]}  Kh6 {[%clk 0:00:10]} 32. Qxc7 {[%clk 0:00:14]}  Qh3 {[%clk 0:00:03]} 33. Qxd6 {[%clk 0:00:12]}  Qg4 {[%clk 0:00:03]} 34. Qe5 {[%clk 0:00:08]}  Bd3 {[%clk 0:00:01]} 35. c5 {[%clk 0:00:06]}  Bxb5 {[%clk 0:00:01]} 36. Qd6 {[%clk 0:00:06]}  Bc6 {[%clk 0:00:01]} 37. Qf8+ {[%clk 0:00:04]}  Kh5 {[%clk 0:00:02]} 38. Qf7 {[%clk 0:00:04]}  h6 {[%clk 0:00:02]} 39. Qe6 {[%clk 0:00:04]}  Qd4 {[%clk 0:00:03]} 40. Qe2+ {[%clk 0:00:03]}  Qg4 {[%clk 0:00:02]} 41. h3 {[%clk 0:00:03]}  Qxe2 {[%clk 0:00:02]} 42. Rexe2 {[%clk 0:00:04]}  Bd8 {[%clk 0:00:01]} 43. Kh2 {[%clk 0:00:03]}  Bc7 {[%clk 0:00:02]} 44. Re6 {[%clk 0:00:04]}  Kg5 {[%clk 0:00:02]} 45. Re7 {[%clk 0:00:04]}  Bb8 {[%clk 0:00:01]} 46. Re6 {[%clk 0:00:04]}  h5 {[%clk 0:00:01]} 47. Rb2 {[%clk 0:00:02]}  h4 {[%clk 0:00:02]} 48. Rxc6 {[%clk 0:00:03]}  Bxg3+ {[%clk 0:00:02]} 49. Kg2 {[%clk 0:00:03]}  bxc6 {[%clk 0:00:03]} 50. Rb6 {[%clk 0:00:04]}  Be5 {[%clk 0:00:01]} 51. Rxc6 {[%clk 0:00:04]}  Bd4 {[%clk 0:00:01]} 52. Kf3 {[%clk 0:00:05]}  Bg1 {[%clk 0:00:01]} 53. Rc8 {[%clk 0:00:05]}  Kf6 {[%clk 0:00:02]} 54. c6 {[%clk 0:00:05]}  Ke7 {[%clk 0:00:02]} 55. Rg8 {[%clk 0:00:05]}  Kd6 {[%clk 0:00:02]} 56. Rxg6+ {[%clk 0:00:05]}  Kc7 {[%clk 0:00:02]} 57. Kf4 {[%clk 0:00:06]}  Bh2+ {[%clk 0:00:02]} 58. Kxf5 {[%clk 0:00:07]}  Bd6 {[%clk 0:00:03]} 59. Kg4 {[%clk 0:00:08]}  Kxc6 {[%clk 0:00:04]} 60. Kxh4 {[%clk 0:00:08]}  Kd5 {[%clk 0:00:04]} 61. Kg5 {[%clk 0:00:08]}  Be5 {[%clk 0:00:05]} 62. h4 {[%clk 0:00:09]}  Ke4 {[%clk 0:00:05]} 63. h5 {[%clk 0:00:09]}  Bf4+ {[%clk 0:00:04]} 64. Kg4 {[%clk 0:00:10]}  Be5 {[%clk 0:00:05]} 65. h6 {[%clk 0:00:10]}  Kd5 {[%clk 0:00:05]} 66. h7 {[%clk 0:00:11]} 1-0


[Site "https://www.chess.com"]

[Event "Titled Tuesday Blitz August 16 Early 2022"]
[White "Schmakel, Sam"]
[Black "Ajay, Karthikeyan"]
[WhiteFideId "2039311"]
[BlackFideId "35011685"]
[WhiteElo "2356"]
[BlackElo "2168"]
[Result "0-1"]
[Round "07"]
[TimeControl "180+1"]
[Date "2022.08.16"]
[WhiteClock "0:01:21"]
[BlackClock "0:01:06"]

1. d4 {[%clk 0:03:00]}  Nf6 {[%clk 0:02:59]} 2. c4 {[%clk 0:03:01]}  g6 {[%clk 0:02:54]} 3. Nc3 {[%clk 0:03:01]}  Bg7 {[%clk 0:02:53]} 4. e4 {[%clk 0:03:01]}  d6 {[%clk 0:02:50]} 5. Be2 {[%clk 0:03:02]}  O-O {[%clk 0:02:49]} 6. Be3 {[%clk 0:03:02]}  Na6 {[%clk 0:02:47]} 7. g4 {[%clk 0:03:00]}  e5 {[%clk 0:02:48]} 8. d5 {[%clk 0:03:00]}  Nc5 {[%clk 0:02:48]} 9. f3 {[%clk 0:02:57]}  a5 {[%clk 0:02:48]} 10. h4 {[%clk 0:02:47]}  h5 {[%clk 0:02:48]} 11. g5 {[%clk 0:02:45]}  Nh7 {[%clk 0:02:42]} 12. Nh3 {[%clk 0:02:43]}  Bxh3 {[%clk 0:02:38]} 13. Rxh3 {[%clk 0:02:44]}  f6 {[%clk 0:02:35]} 14. gxf6 {[%clk 0:02:32]}  Bxf6 {[%clk 0:02:34]} 15. Qd2 {[%clk 0:02:31]}  Bxh4+ {[%clk 0:02:28]} 16. Kd1 {[%clk 0:02:32]}  Bg5 {[%clk 0:02:26]} 17. Rg3 {[%clk 0:02:31]}  Bxe3 {[%clk 0:02:25]} 18. Qxe3 {[%clk 0:02:32]}  Kg7 {[%clk 0:02:04]} 19. Kc2 {[%clk 0:02:30]}  Qh4 {[%clk 0:01:53]} 20. Rag1 {[%clk 0:02:27]}  Rf6 {[%clk 0:01:53]} 21. b3 {[%clk 0:02:18]}  b6 {[%clk 0:01:46]} 22. a3 {[%clk 0:02:13]}  Qf4 {[%clk 0:01:42]} 23. Qf2 {[%clk 0:02:04]}  a4 {[%clk 0:01:26]} 24. b4 {[%clk 0:02:04]}  Nb3 {[%clk 0:01:27]} 25. Bd3 {[%clk 0:01:29]}  Nd4+ {[%clk 0:01:22]} 26. Kb2 {[%clk 0:01:30]}  Nxf3 {[%clk 0:01:09]} 27. R1g2 {[%clk 0:01:31]}  Nh4 {[%clk 0:01:05]} 28. Qxf4 {[%clk 0:01:21]}  exf4 {[%clk 0:01:06]} 0-1


[Site "https://www.chess.com"]